fUSD/lending_fUSD_20240717
["ID","MTS","AMOUNT","RATE_DAILY","PERIOD"]
[332470888,1721215831566,-609.04464819,0.00013999,2]
[332470889,1721215831575,-200.54451933,0.00013999,2]
[332470890,1721215831587,-166.02605396,0.00013999,2]
[332470891,1721215831596,-197907.07069359,0.00014,2]
[332470892,1721215831615,-6701.29860768,0.00014,2]
[332470893,1721215831627,-442.56124562,0.00014,2]
[332470895,1721215832992,-540.396828,0.00014,2]
[332470896,1721215833003,-399.20391486,0.00014,2]
[332470897,1721215833118,-368.13210965,0.00014,2]
[332470913,1721215837523,-1025.62277443,0.00014,2]
[332470914,1721215837564,-39018.22352201,0.00014,2]
[332470915,1721215837603,-1300.04,0.00014,2]
[332470916,1721215837740,-2168.73738276,0.00014,2]
[332470917,1721215837752,-416.89261724,0.00014,2]
[332470918,1721215837884,-672.16249084,0.00014,2]
[332470966,1721215839530,-598.35641594,0.00014,2]
[332470967,1721215839543,-1015.75187423,0.00014,2]
[332470968,1721215839576,-1246.31124,0.00014,2]
[332470969,1721215839728,-10776.445944,0.00014,2]
[332470970,1721215840673,-3383.249017,0.00014,2]
[332471095,1721215842747,-827.19049739,0.00014,2]
[332471096,1721215842758,-439.92190777,0.00014,2]
[332471097,1721215842769,-760.21,0.00014,2]
[332471098,1721215842780,-1154.82337608,0.00014,2]
[332471099,1721215842791,-4875.42789301,0.00014,2]
[332471100,1721215842802,-491.06599435,0.00014,2]
[332471101,1721215842813,-1220.00000001,0.00014,2]
[332471102,1721215842824,-1202.82442801,0.00014,2]
[332471103,1721215842835,-9509.76405694,0.00014,2]
[332471104,1721215842846,-427.149998,0.00014,2]
[332471105,1721215842857,-1502.81579274,0.00014,2]
[332471106,1721215842871,-31746.59391142,0.00014,2]
[332471107,1721215842886,-355936.50296773,0.00014,2]
[332471129,1721215843742,-623.25,0.0001386,2]
[332471145,1721215846302,-4337.48814794,0.0001386,2]
[332471147,1721215847029,-15835.26185206,0.0001386,2]
[332471148,1721215847039,-2856.108,0.000139,2]
[332471149,1721215847048,-39387.49540349,0.00014,2]
[332471169,1721215960391,15451.9318012,0.00011199,2]
[332471170,1721215968252,24745.28176521,0.00011199,2]
[332471171,1721215984685,3397.05260927,0.00011199,2]
[332471175,1721216016931,5390.28312353,0.00011199,2]
[332471182,1721216086137,2380.4625331,0.00011199,2]
[332471184,1721216162403,18809.99225676,0.00011199,2]
[332471186,1721216233623,263.83483544,0.00011199,2]
[332471187,1721216239898,492.55741441,0.00011199,2]
[332471188,1721216242948,202.96927408,0.00011199,2]
[332471189,1721216252033,174.09974943,0.00011199,2]
[332471190,1721216258317,425.35145516,0.00011199,2]
[332471191,1721216262919,202.42126185,0.00011199,2]
[332471192,1721216263590,329.91691535,0.00011199,2]
[332471193,1721216265454,158.75541604,0.00011199,2]
[332471194,1721216273341,250.0,0.00011199,2]
[332471195,1721216275643,195.80571006,0.00011199,2]
[332471197,1721216283993,155.0,0.00011199,2]
[332471199,1721216289239,199.90941147,0.00011199,2]
[332471200,1721216293927,809.04705804,0.00011199,2]
[332471202,1721216311313,453.71,0.00011184,2]
[332471204,1721216320603,193.83550993,0.00011199,2]
[332471205,1721216323184,218.35616998,0.00011199,2]
[332471215,1721216451711,16615.07,0.00011199,2]
[332471217,1721216467623,793.50871009,0.00011199,2]
[332471224,1721216528025,155.05511616,0.00011199,2]
[332471264,1721216795562,425.1805088,0.00011199,2]
[332471265,1721216823847,456.3,0.00010743,2]
[332471267,1721216865510,201.04551137,0.00011199,2]
[332471268,1721216870459,448.71426765,0.00010743,2]
[332471283,1721217008940,300.09859225,0.00010743,2]
[332471306,1721217031595,-948.1535,0.00012202,2]
[332471307,1721217031604,-215.01537133,0.00012302,2]
[332471308,1721217031615,-164.06736204,0.00012302,2]
[332471309,1721217031624,-17.54945459,0.00012314,2]
[332471310,1721217031646,-189.3143997,0.00012314,2]
[332471311,1721217031656,-150.0,0.00012512,2]
[332471312,1721217031665,-2444.09119076,0.0001253,2]
[332471313,1721217031702,-1586.14880924,0.0001253,2]
[332471314,1721217031711,-598.5,0.00012552,2]
[332471315,1721217031720,-163.33,0.00012573,2]
[332471316,1721217031730,-798.49,0.00012607,2]
[332471317,1721217031739,-250.0,0.00012649,2]
[332471318,1721217031749,-287.43,0.00012695,2]
[332471319,1721217031761,-300.0,0.00012741,2]
[332471320,1721217031771,-385.82,0.00012742,2]
[332471321,1721217031781,-92.80487043,0.00012765,2]
[332471322,1721217031791,-157.19512957,0.00012765,2]
[332471323,1721217031801,-492.05578043,0.00012792,2]
[332471324,1721217031817,-310.10421957,0.00012792,2]
[332471325,1721217031826,-150.0,0.00012904,2]
[332471326,1721217031836,-499.99,0.00012904,2]
[332471327,1721217031845,-150.99,0.00012934,2]
[332471328,1721217031854,-1614.88,0.00012936,2]
[332471329,1721217031864,-2056.87819034,0.00012956,2]
[332471330,1721217031875,-1325.8073129,0.00012956,2]
[332471331,1721217031887,-919.32000046,0.00012956,2]
[332471332,1721217031898,-630.85,0.00012956,2]
[332471333,1721217031910,-9570.6044963,0.00012956,2]
[332471334,1721217031919,-456.3,0.00013007,2]
[332471335,1721217031928,-155.99964841,0.00013022,2]
[332471336,1721217031938,-155.26141599,0.00013128,2]
[332471337,1721217031947,-155.0,0.00013128,2]
[332471338,1721217031957,-526.70381718,0.00013128,2]
[332471339,1721217031970,-2004.57,0.00013313,2]
[332471341,1721217031980,-2777.56446602,0.00013472,2]
[332471343,1721217031989,-1026.66982016,0.00013573,2]
[332471345,1721217031999,-18803.5311664,0.00013574,2]
[332471346,1721217032010,-785.20134825,0.00013583,2]
[332471348,1721217032019,-462.46289417,0.000136,2]
[332471350,1721217032028,-867.196,0.00013621,2]
[332471352,1721217032039,-250.0,0.00013699,2]
[332471354,1721217032049,-188.44,0.00013699,2]
[332471356,1721217032058,-514.87,0.00013699,2]
[332471358,1721217032069,-200.0,0.00013699,2]
[332471359,1721217032079,-547.44,0.00013699,2]
[332471360,1721217032088,-1951.37,0.00013699,2]
[332471361,1721217032099,-300.0,0.000137,5]
[332471362,1721217032109,-300.0,0.000137,5]
[332471363,1721217032118,-419.00943635,0.00013757,2]
[332471364,1721217032128,-600.0,0.000138,5]
[332471365,1721217032136,-700.0,0.000138,5]
[332471366,1721217032146,-2204.54280756,0.00013849,2]
[332471367,1721217032155,-617.04418814,0.00013849,2]
[332471368,1721217032165,-1985.09767323,0.00013899,2]
[332471369,1721217032174,-611.2573,0.000139,2]
[332471370,1721217032184,-11331.6027,0.000139,2]
[332471371,1721217032193,-900.0,0.000139,5]
[332471372,1721217032203,-2366.5058,0.000139,2]
[332471373,1721217032212,-1100.0,0.000139,5]
[332471374,1721217032222,-4904.73956801,0.00013963,2]
[332471375,1721217032231,-173.98552994,0.00013963,2]
[332471376,1721217032240,-2030.02028232,0.00013963,2]
[332471377,1721217032250,-1000.0,0.00013973,5]
[332471378,1721217032265,-600.24389501,0.0001398,2]
[332471379,1721217032275,-267.84720901,0.00013985,2]
[332471380,1721217032284,-30843.2446106,0.0001399,2]
[332471381,1721217032296,-197.56186878,0.0001399,2]
[332471382,1721217032306,-500.0,0.00013999,2]
[332471383,1721217032316,-254.89046332,0.00013999,2]
[332471384,1721217032326,-500.0,0.00013999,2]
[332471385,1721217032336,-478.42753427,0.00013999,2]
[332471386,1721217032345,-500.0,0.00013999,2]
[332471387,1721217032354,-500.0,0.00013999,2]
[332471388,1721217032363,-500.0,0.00013999,2]
[332471389,1721217032373,-500.0,0.00013999,2]
[332471390,1721217032382,-554.4940931,0.00013999,2]
[332471391,1721217032392,-500.0,0.00013999,2]
[332471392,1721217032402,-591.94003308,0.00013999,2]
[332471393,1721217032411,-472.11077101,0.00013999,2]
[332471394,1721217032420,-191.02840007,0.00013999,2]
[332471395,1721217032430,-381.50188535,0.00013999,2]
[332471396,1721217032439,-155.0,0.00013999,2]
[332471397,1721217032449,-2377.23719356,0.00013999,2]
[332471398,1721217032459,-520148.16896475,0.00014,2]
[332471399,1721217032471,-2109.43741355,0.00014,2]
[332471400,1721217032487,-290183.18145503,0.00014,2]
[332471401,1721217032498,-2012.29595931,0.00014,2]
[332471402,1721217032517,-6728.94505261,0.00014,2]
[332471403,1721217032528,-76056.25308001,0.00014,2]
[332471404,1721217032539,-517.85511205,0.00014,2]
[332471405,1721217032551,-820.87408869,0.00014,2]
[332471406,1721217032562,-1420.86797097,0.00014,2]
[332471407,1721217032574,-820.71583089,0.00014,2]
[332471410,1721217037663,-358.33485164,0.00013574,2]
[332471411,1721217037675,-327.47969598,0.00013574,2]
[332471412,1721217037685,-617.04418814,0.00013849,2]
[332471413,1721217037695,-197.7227689,0.00013997,2]
[332471414,1721217037705,-9845.14526739,0.00014,2]
[332471415,1721217037771,-1997.10378,0.00014,2]
[332471416,1721217037782,-207548.56150009,0.00014,2]
[332471417,1721217037794,-914.0500234,0.00014,2]
[332471418,1721217037805,-2166.78342138,0.00014,2]
[332471419,1721217037821,-1251.34130064,0.00014,2]
[332471420,1721217037832,-729.82228752,0.00014,2]
[332471421,1721217037875,-778.63202683,0.00014,2]
[332471422,1721217037887,-2183.16426548,0.00014,2]
[332471423,1721217037899,-164045.15260063,0.00014,2]
[332471424,1721217037910,-4552.91952645,0.00014,2]
[332471425,1721217037929,-785.60005,0.00014,2]
[332471426,1721217037941,-129751.53898938,0.00014,2]
[332471427,1721217037952,-53584.11118415,0.00014,2]
[332471428,1721217037967,-1009.91881608,0.00014,2]
[332471429,1721217037978,-11236.84294055,0.00014,2]
[332471430,1721217037990,-11911.24209814,0.00014,2]
[332471431,1721217038002,-5556.73676619,0.00014,2]
[332471432,1721217038016,-209740.06350283,0.00014,2]
[332471433,1721217038028,-282.04696975,0.00014,2]
[332471434,1721217038039,-566.76354058,0.00014,2]
[332471435,1721217038050,-361.675,0.00014,2]
[332471436,1721217038063,-167143.46614391,0.00014,2]
[332471437,1721217038073,-132696.27002821,0.00014,2]
[332471438,1721217038085,-6628.30439943,0.00014,2]
[332471453,1721217039712,-441.48538942,0.0001386,2]
[332471455,1721217039724,-45492.75619213,0.0001386,2]
[332471457,1721217039735,-2954.1894928,0.0001386,2]
[332471460,1721217039767,-662.70634916,0.0001386,2]
[332471462,1721217040342,-34674.87507379,0.0001386,2]
[332471463,1721217040447,-630.25841339,0.0001386,2]
[332471464,1721217040458,-1070.81536221,0.0001386,2]
[332471465,1721217040501,-499.30965956,0.0001386,2]
[332471466,1721217040609,-3383.5,0.0001386,2]
[332471467,1721217040622,-54949.59560973,0.0001386,2]
[332471619,1721217042702,-1951.05023795,0.00012804,2]
[332471621,1721217042712,-302.13239031,0.00013022,2]
[332471622,1721217042721,-18585.50845781,0.0001386,2]
[332471624,1721217042730,-203.97728596,0.00013915,2]
[332471626,1721217042739,-40845.81878327,0.00014,2]
[332471630,1721217042913,-2750.43942241,0.00014,2]
[332471631,1721217042972,-647.56,0.00014,2]
[332471632,1721217042983,-2080.68,0.00014,2]
[332471633,1721217042994,-955.62140526,0.00014,2]
[332471634,1721217043006,-6518.81577869,0.00014,2]
[332471637,1721217043029,-195196.16412625,0.00014,2]
[332471638,1721217043039,-310.0,0.00014015,2]
[332471639,1721217043050,-1180.55555,0.0001435,2]
[332471640,1721217043060,-802.16,0.00014391,2]
[332471641,1721217043069,-11813.4840559,0.0001448,2]
[332471642,1721217043079,-154.1,0.00014547,2]
[332471643,1721217043088,-163.33,0.00014669,2]
[332471644,1721217043097,-1180.55556,0.0001467,2]
[332471645,1721217043107,-1180.55556,0.0001498,2]
[332471646,1721217043116,-600.0,0.00015,2]
[332471647,1721217043126,-2620.0,0.000151,2]
[332471648,1721217043137,-4904.73956792,0.00015178,2]
[332471650,1721217043147,-2030.02028224,0.00015178,2]
[332471663,1721217043412,-456.3,0.00015271,2]
[332471664,1721217043422,-1180.55555,0.000153,2]
[332471665,1721217043431,-957.57971536,0.00015399,2]
[332471666,1721217043440,-1180.55556,0.000156,2]
[332471667,1721217043450,-300.73995427,0.000157,2]
[332471668,1721217043459,-1180.55556,0.0001591,2]
[332471669,1721217043468,-802.16,0.0001599,2]
[332471670,1721217043477,-250.0,0.0001629,2]
[332471671,1721217043486,-154.1,0.00016365,2]
[332471672,1721217043495,-4904.73956792,0.00016393,2]
[332471673,1721217043505,-2030.02028224,0.00016393,2]
[332471674,1721217043514,-2654.35823451,0.000167,2]
[332471675,1721217043523,-163.33,0.00016764,2]
[332471676,1721217043533,-528.82,0.00016767,2]
[332471677,1721217043543,-635.55,0.00016767,2]
[332471678,1721217043552,-165.14,0.00016767,2]
[332471679,1721217043561,-362.12,0.00016767,2]
[332471680,1721217043570,-303.01,0.00016767,2]
[332471681,1721217043580,-1063.12,0.00016767,2]
[332471682,1721217043589,-331.64,0.00016767,2]
[332471683,1721217043599,-1058.72,0.00016767,2]
[332471684,1721217043608,-301.27,0.00016767,2]
[332471685,1721217043618,-413.67982935,0.00016808,2]
[332471686,1721217043627,-650.0,0.00017,2]
[332471687,1721217043636,-179.51,0.00017006,2]
[332471688,1721217043646,-616.45345182,0.00017159,2]
[332471689,1721217043655,-2498.02656989,0.00017199,2]
[332471690,1721217043665,-1000.0,0.000172,2]
[332471691,1721217043675,-538.0,0.00017233,2]
[332471692,1721217043685,-155.0,0.00017257,2]
[332471693,1721217043694,-155.0,0.00017257,2]
[332471694,1721217043703,-209.07691188,0.00017259,2]
[332471695,1721217043713,-201.68312396,0.000173,2]
[332471696,1721217043722,-839.03,0.00017349,2]
[332471697,1721217043732,-155.0,0.00017444,2]
[332471698,1721217043741,-227.39291056,0.00017533,2]
[332471699,1721217043750,-456.3,0.00017535,2]
[332471700,1721217043759,-802.16,0.00017589,2]
[332471701,1721217043771,-4904.73956792,0.00017609,2]
[332471702,1721217043780,-2030.02028224,0.00017609,2]
[332471703,1721217043789,-425.07,0.00017616,2]
[332471704,1721217043800,-355.44,0.00017616,2]
[332471705,1721217043809,-330.09,0.00017616,2]
[332471706,1721217043818,-6260.4,0.00017728,2]
[332471707,1721217043827,-1173.73,0.00017728,2]
[332471708,1721217043837,-29999.99,0.00017728,2]
[332471709,1721217043847,-9620.85,0.00017728,2]
[332471710,1721217043856,-19999.99,0.00017728,2]
[332471711,1721217043865,-9527.55,0.00017728,2]
[332471712,1721217043874,-1000.0,0.000178,2]
[332471713,1721217043884,-1200.0,0.000179,6]
[332471714,1721217043893,-1400.0,0.000179,6]
[332471715,1721217043902,-1600.0,0.00018,3]
[332471716,1721217043912,-152.64471479,0.00018036,2]
[332471717,1721217043921,-544.18500554,0.00018081,2]
[332471718,1721217043930,-159.33986452,0.00018091,2]
[332471719,1721217043939,-1000.0,0.000181,2]
[332471720,1721217043948,-154.1,0.00018184,2]
[332471721,1721217043957,-155.93834583,0.00018251,2]
[332471722,1721217043969,-442.83751508,0.00018338,2]
[332471723,1721217043978,-1252.0,0.00018378,2]
[332471724,1721217043987,-361.0,0.00018378,2]
[332471725,1721217043996,-1661.0,0.00018378,2]
[332471726,1721217044007,-1829.0,0.00018378,2]
[332471727,1721217044018,-450.0,0.00018378,2]
[332471728,1721217044027,-150.0,0.00018378,2]
[332471729,1721217044036,-620.0,0.00018378,2]
[332471730,1721217044047,-445.266,0.00018378,2]
[332471731,1721217044056,-150.0,0.00018378,2]
[332471732,1721217044065,-2380.0,0.00018378,2]
[332471733,1721217044074,-549.0,0.00018378,2]
[332471734,1721217044083,-3280.0,0.00018378,2]
[332471735,1721217044092,-150.0,0.00018378,2]
[332471736,1721217044102,-936.992,0.00018378,2]
[332471737,1721217044111,-6899.623,0.00018378,2]
[332471738,1721217044120,-903.969,0.00018378,2]
[332471739,1721217044129,-150.0,0.00018378,2]
[332471740,1721217044138,-1072.0,0.00018378,2]
[332471741,1721217044147,-150.0,0.00018378,2]
[332471742,1721217044156,-425.07,0.00018438,2]
[332471743,1721217044165,-355.44,0.00018438,2]
[332471744,1721217044175,-355.44,0.00018438,2]
[332471745,1721217044184,-425.07,0.00018438,2]
[332471746,1721217044192,-425.07,0.00018438,2]
[332471747,1721217044202,-425.07,0.00018438,2]
[332471748,1721217044211,-425.07,0.00018438,2]
[332471749,1721217044220,-425.07,0.00018438,2]
[332471750,1721217044229,-425.07,0.00018438,2]
[332471751,1721217044238,-425.07,0.00018438,2]
[332471752,1721217044247,-425.07,0.00018438,2]
[332471753,1721217044257,-798.99,0.00018438,2]
[332471754,1721217044269,-159.33986452,0.00018468,2]
[332471755,1721217044278,-155.57001067,0.00018523,2]
[332471756,1721217044287,-155.57001067,0.0001856,2]
[332471757,1721217044297,-159.33986452,0.00018634,2]
[332471758,1721217044306,-157.39515505,0.00018664,2]
[332471759,1721217044315,-1500.0,0.000187,6]
[332471760,1721217044325,-1000.0,0.000187,2]
[332471761,1721217044334,-1800.0,0.000187,6]
[332471762,1721217044343,-4823.83203026,0.00018792,2]
[332471763,1721217044352,-300.0,0.000188,6]
[332471764,1721217044361,-300.0,0.000188,6]
[332471765,1721217044371,-150.62825954,0.00018808,2]
[332471766,1721217044380,-4904.73956792,0.00018824,2]
[332471767,1721217044390,-2030.02028224,0.00018824,2]
[332471768,1721217044399,-500.0,0.00018847,2]
[332471769,1721217044408,-200.0,0.00018847,2]
[332471770,1721217044417,-500.0,0.00018848,2]
[332471771,1721217044427,-200.0,0.00018848,2]
[332471772,1721217044436,-255.04,0.00018849,30]
[332471773,1721217044445,-163.33,0.0001886,2]
[332471774,1721217044455,-5800.0,0.00018883,2]
[332471775,1721217044463,-5800.0,0.00018892,2]
[332471776,1721217044472,-1347.88971627,0.000189,2]
[332471777,1721217044482,-244.0,0.000189,2]
[332471778,1721217044492,-5800.0,0.000189,2]
[332471779,1721217044501,-300.0,0.000189,6]
[332471780,1721217044510,-300.0,0.000189,6]
[332471781,1721217044522,-151.94736869,0.00018944,2]
[332471782,1721217044530,-11554.46220623,0.00018988,2]
[332471783,1721217044543,-18007.05712273,0.00018988,2]
[332471784,1721217044554,-925.50594997,0.00018988,2]
[332471785,1721217044565,-2724.565046,0.00018988,2]
[332471787,1721217045890,-265.87657101,0.00013022,2]
[332471788,1721217045900,-15910.71512477,0.00018988,2]
[332471789,1721217045909,-11600.68584246,0.00018988,2]
[332471790,1721217045924,-1057.20209729,0.00018988,2]
[332471791,1721217045936,-260.418,0.00018988,2]
[332471792,1721217045946,-4179.94292725,0.00018988,2]
[332471793,1721217045955,-197.56186878,0.0001899,2]
[332471794,1721217045965,-3657.40911934,0.00018999,2]
[332471795,1721217045979,-506.07211862,0.00018999,2]
[332471801,1721217118127,5605.08175338,0.00011199,2]
[332471802,1721217123784,10778.90570161,0.00011199,2]
[332471803,1721217135296,22998.29020905,0.00011199,2]
[332471804,1721217212534,158.75541604,0.00011199,2]
[332471805,1721217214201,1984.46893075,0.00011199,2]
[332471806,1721217231997,544.18500554,0.00011199,2]
[332471808,1721217241411,569.39787187,0.00011199,2]
[332471809,1721217252672,243.85105627,0.00011199,2]
[332471810,1721217255142,358.85703166,0.00011199,2]
[332471811,1721217257758,254.10536199,0.00011199,2]
[332471812,1721217265860,317.80568426,0.00011199,2]
[332471813,1721217267314,172.99391945,0.00011199,2]
[332471815,1721217273331,155.0,0.00011199,2]
[332471816,1721217283866,263.65679247,0.00011199,2]
[332471817,1721217289817,209.07691188,0.00011199,2]
[332471818,1721217298925,164.24897163,0.00011199,2]
[332471819,1721217299138,155.05502218,0.00011199,2]
[332471820,1721217306136,290.20900404,0.00011199,2]
[332471823,1721217393770,15950.60062963,0.00011199,2]
[332471827,1721217642245,1736.84152031,0.00011199,2]
[332471828,1721217652583,155.27948738,0.00011199,2]
[332471830,1721217712677,13107.87899231,0.00011199,2]
[332471831,1721217712948,2344.05280889,0.00011199,2]
[332471832,1721217752754,655.94719111,0.00011199,2]
[332471833,1721217752776,3868.72657059,0.00011199,2]
[332471834,1721217765547,171.30798916,0.00011199,2]
[332471835,1721217774881,155.0,0.00011199,2]
[332471836,1721217804878,155.0,0.00011199,2]
[332471837,1721217808355,2145.90375938,0.00011199,2]
[332471841,1721217867126,1963.82814303,0.00011199,2]
[332471842,1721217968662,181.95,0.00010658,2]
[332471845,1721218037764,202.60874976,0.00011199,2]
[332471846,1721218040029,451.14,0.00010063,2]
[332471862,1721218215179,427.0,0.00025,120]
[332471874,1721218232323,-1000.0,0.000122,2]
[332471875,1721218232333,-155.0,0.00012302,2]
[332471877,1721218232342,-155.0,0.00012302,2]
[332471878,1721218232352,-451.14,0.00012327,2]
[332471880,1721218232362,-550.0,0.00013,2]
[332471882,1721218232374,-100.81134433,0.00013,2]
[332471884,1721218232385,-199.18865567,0.00013,2]
[332471886,1721218232395,-300.0,0.00013367,2]
[332471888,1721218232406,-300.0,0.00013367,2]
[332471889,1721218232416,-99.34162888,0.00013368,2]
[332471890,1721218232427,-947.56950504,0.00013368,2]
[332471891,1721218232439,-570.09,0.00013368,2]
[332471892,1721218232454,-871.5527439,0.00013368,2]
[332471893,1721218232465,-2507.5411017,0.00013368,2]
[332471894,1721218232476,-1261.02900317,0.00013368,2]
[332471895,1721218232488,-3378.90602154,0.00013368,2]
[332471896,1721218232500,-3062.23394793,0.00013368,2]
[332471897,1721218232512,-1200.22252239,0.00013368,2]
[332471898,1721218232523,-5728.92891518,0.00013368,2]
[332471899,1721218232534,-1357.62885533,0.00013368,2]
[332471900,1721218232550,-2904.95575494,0.00013368,2]
[332471901,1721218232560,-250.0,0.00013368,2]
[332471902,1721218232569,-250.0,0.00013443,2]
[332471903,1721218232579,-288.08,0.00013501,2]
[332471904,1721218232589,-344.4,0.00013512,2]
[332471905,1721218232598,-150.0,0.00013623,2]
[332471906,1721218232608,-459.37,0.00013624,2]
[332471907,1721218232618,-499.99,0.00013624,2]
[332471908,1721218232627,-9999.99,0.00013624,2]
[332471909,1721218232636,-706.33,0.00013699,2]
[332471910,1721218232645,-250.0,0.00013699,2]
[332471911,1721218232654,-562.49,0.00013699,2]
[332471912,1721218232663,-200.0,0.00013699,2]
[332471913,1721218232672,-603.48097736,0.00013699,2]
[332471914,1721218232683,-950.90717399,0.00013699,2]
[332471915,1721218232693,-967.08683004,0.00013699,2]
[332471916,1721218232704,-616.93501861,0.00013699,2]
[332471917,1721218232713,-2148.51,0.00013699,2]
[332471918,1721218232722,-2751.0,0.00013699,2]
[332471919,1721218232733,-500.0,0.00013699,2]
[332471920,1721218232745,-178.11,0.00013872,2]
[332471921,1721218232758,-1684.7492,0.00013899,2]
[332471923,1721218232768,-9062.7068,0.000139,2]
[332471925,1721218232777,-9842.2376,0.000139,2]
[332471926,1721218232786,-4047.29017296,0.00013937,2]
[332471927,1721218232796,-2540.67777156,0.00013958,2]
[332471928,1721218232806,-319.44017925,0.00013958,2]
[332471929,1721218232816,-716.75621518,0.00013958,2]
[332471930,1721218232826,-1000.0,0.00013973,5]
[332471931,1721218232836,-161.57771743,0.00013989,2]
[332471932,1721218232845,-692770.91907037,0.00013999,2]
[332471933,1721218232855,-188.85,0.00014057,2]
[332471934,1721218232865,-151.87,0.00014408,2]
[332471935,1721218232876,-451.14,0.00014591,2]
[332471936,1721218232885,-150.0,0.0001474,2]
[332471937,1721218232894,-227.39291056,0.00014999,2]
[332471938,1721218232904,-600.0,0.00015,2]
[332471939,1721218232914,-4047.29017287,0.00015155,2]
[332471940,1721218232923,-2540.67777155,0.00015174,2]
[332471941,1721218232933,-288.08,0.00015189,2]
[332471942,1721218232943,-459.37,0.00015327,2]
[332471943,1721218232952,-319.4401792,0.00015521,2]
[332471944,1721218232962,-5000.0,0.00016,2]
[332471945,1721218232972,-22412.19,0.00016116,2]
[332471946,1721218232982,-4417.99,0.00016116,2]
[332471947,1721218232992,-4047.29017287,0.00016373,2]
[332471948,1721218233004,-2540.67777155,0.0001639,2]
[332471949,1721218233014,-716.75621518,0.00016429,2]
[332471950,1721218233024,-247.252615,0.00016438,2]
[332471951,1721218233034,-1500.0,0.000167,2]
[332471952,1721218233044,-451.14,0.00016855,2]
[332471953,1721218233053,-288.08,0.00016876,2]
[332471954,1721218233064,-650.0,0.00017,2]
[332471955,1721218233074,-459.37,0.0001703,2]
[332471956,1721218233083,-319.4401792,0.00017084,2]
[332471957,1721218233093,-247.252615,0.0001726,2]
[332471958,1721218233103,-427.00309723,0.00017276,2]
[332471959,1721218233112,-4047.29017287,0.00017591,2]
[332471960,1721218233122,-2540.67777155,0.00017605,2]
[332471961,1721218233132,-171.9,0.00017878,2]
[332471962,1721218233142,-369.54465039,0.00017925,2]
[332471963,1721218233152,-369.54465039,0.00017925,2]
[332471964,1721218233162,-2498.02656989,0.00018081,2]
[332471965,1721218233171,-247.252615,0.00018082,2]
[332471966,1721218233180,-427.00309723,0.00018111,2]
[332471967,1721218233190,-300.0,0.00018192,2]
[332471968,1721218233200,-152.38095238,0.00018329,2]
[332471969,1721218233210,-150.5107985,0.00018379,2]
[332471970,1721218233220,-2500.0,0.00018424,2]
[332471971,1721218233230,-151.68,0.00018554,2]
[332471972,1721218233240,-150.0,0.00018554,2]
[332471973,1721218233251,-303.07,0.00018554,2]
[332471974,1721218233261,-529.36,0.00018554,2]
[332471975,1721218233272,-709.7,0.00018554,2]
[332471976,1721218233282,-529.36,0.00018554,2]
[332471977,1721218233291,-288.08,0.00018564,2]
[332471978,1721218233301,-151.97548658,0.00018572,2]
[332471979,1721218233312,-151.9473687,0.00018586,2]
[332471980,1721218233323,-150.0,0.00018598,2]
[332471981,1721218233335,-2380.0,0.00018598,2]
[332471982,1721218233344,-549.0,0.00018598,2]
[332471983,1721218233354,-1990.0,0.00018598,2]
[332471984,1721218233364,-3280.0,0.00018598,2]
[332471985,1721218233374,-150.0,0.00018598,2]
[332471986,1721218233383,-5182.0,0.00018598,2]
[332471987,1721218233393,-1200.0,0.00018598,2]
[332471988,1721218233402,-5817.0,0.00018598,2]
[332471989,1721218233412,-32043.017,0.00018598,2]
[332471990,1721218233422,-1666.0,0.00018598,2]
[332471991,1721218233431,-2500.0,0.00018642,2]
[332471992,1721218233441,-319.4401792,0.00018647,2]